bitfinex-derivatives/quotes_SOLF0:USTF0_20241127
["timestamp","ask_amount","ask_price","bid_price","bid_amount"]
[1732699463962,12.88,233.36,232.98,2.16]
[1732699464164,12.88,233.34,232.98,2.16]
[1732699468769,15.04,233.33,232.98,2.16]
[1732699471673,15.04,233.33,232.99,2.16]
[1732699471867,15.04,233.33,232.99,29.57123535]
[1732699474474,15.04,233.33,232.99,63.09123535]
[1732699476473,27.93,233.33,232.99,60.93123535]
[1732699476673,27.93,233.33,233.0,2.16]
[1732699477275,27.93,233.33,232.99,60.93123535]
[1732699477473,27.93,233.33,233.0,2.16]
[1732699488687,25.77,233.33,233.0,2.16]
[1732699488888,12.88,233.31,233.0,2.16]
[1732699490388,12.88,233.29,233.0,2.16]
[1732699491983,12.89,233.3,233.0,2.16]
[1732699492287,12.88,233.29,233.0,2.16]
[1732699492487,25.77,233.29,233.0,2.16]
[1732699498691,2.12,233.32,233.0,2.16]
[1732699498692,12.88,233.28,233.0,2.16]
[1732699498890,12.88,233.26,233.0,2.16]
[1732699499092,12.88,233.24,233.0,2.16]
[1732699504697,12.88,233.34,233.0,2.16]
[1732699504899,12.88,233.32,233.0,2.16]
[1732699510801,12.88,233.31,233.0,2.16]
[1732699511000,12.88,233.29,233.0,2.16]
[1732699512301,12.88,233.37,233.0,2.16]
[1732699512501,12.88,233.35,233.0,15.07]
[1732699512702,15.0,233.35,233.0,15.07]
[1732699515800,2.04,233.36,233.0,15.07]
[1732699516004,12.88,233.35,233.0,15.07]
[1732699517507,12.88,233.38,233.0,15.07]
[1732699518406,12.88,233.38,232.98,12.91]
[1732699518608,12.88,233.38,232.99,2.04]
[1732699518808,12.88,233.38,232.99,42.35219133]
[1732699519610,12.88,233.38,232.99,29.44219133]
[1732699519805,12.88,233.38,232.99,27.40219133]
[1732699520011,12.88,233.38,233.0,2.04]
[1732699521309,12.88,233.38,233.0,14.93]
[1732699522510,12.88,233.38,233.0,12.89]
[1732699522709,12.88,233.38,233.01,2.04]
[1732699530219,12.88,233.38,232.99,27.40219133]
[1732699530617,12.88,233.38,233.0,2.04]
[1732699533019,12.88,233.36,233.0,2.04]
[1732699533617,12.88,233.34,233.0,2.04]
[1732699538325,12.89,233.47,233.0,2.04]
[1732699538523,14.92,233.46,233.0,2.04]
[1732699540326,12.88,233.44,233.0,2.04]
[1732699542321,12.88,233.45,233.0,2.04]
[1732699542624,25.77,233.45,233.0,2.04]
[1732699543928,25.77,233.45,233.0,14.93]
[1732699545328,25.77,233.45,233.0,2.04]
[1732699545528,25.77,233.45,232.98,12.89]
[1732699545829,25.77,233.45,232.97,46.41]
[1732699546030,25.77,233.45,232.98,2.02]
[1732699553534,12.88,233.44,232.98,2.02]
[1732699553827,12.88,233.42,232.98,2.02]
[1732699554033,12.88,233.4,232.98,2.02]
[1732699561338,12.88,233.5,232.98,2.02]
[1732699561537,12.88,233.41,232.98,2.02]
[1732699565240,12.88,233.41,232.97,46.41]
[1732699565446,12.88,233.41,232.98,2.02]
[1732699565639,12.88,233.41,232.97,46.41]
[1732699565842,12.88,233.41,232.99,2.02]
[1732699566043,12.88,233.41,233.0,12.89]
[1732699567145,12.88,233.5,233.0,12.89]
[1732699567345,25.77,233.48,233.0,12.89]
[1732699568748,12.88,233.5,233.0,12.89]
[1732699568947,12.88,233.48,233.0,12.89]
[1732699574753,12.88,233.51,233.0,12.89]
[1732699574952,12.88,233.49,233.0,12.89]
[1732699576859,12.88,233.49,233.01,2.02]
[1732699577358,12.88,233.49,233.0,12.89]
[1732699577559,12.88,233.49,233.01,2.02]
[1732699579357,12.88,233.49,233.0,12.89]
[1732699579664,12.88,233.49,233.01,2.02]
[1732699588568,12.88,233.49,232.98,12.89]
[1732699588871,12.88,233.49,232.99,2.02]
[1732699589072,12.88,233.49,233.0,12.89]
[1732699589273,12.88,233.51,233.0,12.89]
[1732699589474,12.88,233.47,233.0,12.89]
[1732699591277,12.88,233.47,233.01,2.02]
[1732699595080,12.88,233.47,233.03,12.89]
[1732699596281,25.77,233.47,233.03,12.89]
[1732699596481,25.77,233.47,233.04,2.02]
[1732699601187,25.77,233.47,233.02,33.5]
[1732699601388,25.77,233.47,233.03,2.02]
[1732699606493,25.77,233.47,233.02,33.5]
[1732699606693,25.77,233.47,233.03,2.02]
[1732699607093,25.77,233.47,232.99,27.39554394]
[1732699607295,25.77,233.47,233.0,2.02]
[1732699608197,12.88,233.35,233.0,2.02]
[1732699608396,12.88,233.33,233.0,2.02]
[1732699609599,12.88,233.31,233.0,2.02]
[1732699609801,2.02,233.3,233.0,2.02]
[1732699610097,12.88,233.29,233.0,2.02]
[1732699610698,12.88,233.27,233.0,2.02]
[1732699611199,12.88,233.25,233.0,2.02]
[1732699611400,12.88,233.23,233.0,2.02]
[1732699611599,14.9,233.23,233.0,2.02]
[1732699617806,12.88,233.41,233.0,2.02]
[1732699618101,12.88,233.39,233.0,2.02]
[1732699619402,12.88,233.42,233.0,2.02]
[1732699619605,12.88,233.37,233.0,2.02]
[1732699619908,12.88,233.35,233.0,2.02]
[1732699620406,12.88,233.33,233.0,2.02]
[1732699621311,12.88,233.33,233.0,14.91]
[1732699621910,12.88,233.33,233.0,2.02]
[1732699623707,12.88,233.48,233.0,2.02]
[1732699623912,12.88,233.42,233.0,2.02]
[1732699624111,12.88,233.4,233.0,2.02]
[1732699624810,12.88,233.38,233.0,2.02]
[1732699628416,12.88,233.38,233.0,14.91]
[1732699630414,12.89,233.47,233.0,14.91]
[1732699630618,12.88,233.44,233.0,14.91]
[1732699630813,2.02,233.43,233.0,14.91]
[1732699631017,12.88,233.42,233.0,14.91]
[1732699633921,12.88,233.45,233.0,14.91]
[1732699634119,12.88,233.4,233.0,14.91]
[1732699634320,12.88,233.38,233.0,14.91]
[1732699634520,12.88,233.36,233.0,14.91]
[1732699635025,12.88,233.34,233.0,14.91]
[1732699636320,12.88,233.51,233.0,14.91]
[1732699636521,12.88,233.49,233.0,14.91]
[1732699641524,12.88,233.47,233.0,14.91]
[1732699642225,12.88,233.45,233.0,14.91]
[1732699645931,12.88,233.51,233.0,14.91]
[1732699646129,12.88,233.49,233.0,14.91]
[1732699665655,12.88,233.49,233.0,12.89]
[1732699665854,12.88,233.49,233.01,2.02]
[1732699668563,12.88,233.57,233.01,2.02]
[1732699668859,12.88,233.55,233.01,2.02]
[1732699669555,12.88,233.53,233.01,2.02]
[1732699671659,13.8538,233.6,233.01,2.02]
[1732699672661,0.9738,233.6,233.01,2.02]
[1732699672959,0.9738,233.6,233.02,1.0]
[1732699676967,0.9738,233.6,233.03,2.02]
[1732699678667,0.9738,233.6,233.04,1.0]
[1732699685470,0.9738,233.6,233.05,2.02]
[1732699686770,0.9738,233.6,233.06,1.0]
[1732699689372,0.9738,233.6,233.07,2.02]
[1732699691273,0.9738,233.6,233.0,40.27874373]
[1732699691674,0.9738,233.6,233.02,12.89]
[1732699697180,13.8538,233.6,233.02,12.89]
[1732699697380,12.88,233.58,233.02,12.89]
[1732699708192,12.88,233.58,233.03,2.0]
[1732699711896,12.88,233.52,232.96,12.89]
[1732699712097,12.88,233.5,232.98,12.89]
[1732699713396,12.88,233.5,232.99,2.02]
[1732699714289,12.88,233.56,232.99,2.02]
[1732699714495,25.77,233.54,232.99,2.02]
[1732699723200,12.88,233.52,232.99,2.02]
[1732699723499,12.88,233.5,232.99,2.02]
[1732699728807,25.77,233.56,232.99,2.02]
[1732699729105,12.88,233.48,232.99,2.02]
[1732699729308,12.88,233.46,232.99,2.02]
[1732699731409,12.88,233.46,232.98,12.89]
[1732699731808,12.88,233.46,232.99,2.02]
[1732699736511,12.88,233.46,233.0,12.89]
[1732699738812,12.88,233.44,233.0,12.89]
[1732699739113,12.88,233.44,232.99,2.02]
[1732699740008,12.88,233.42,232.99,2.02]
[1732699740717,12.88,233.4,232.99,2.02]
[1732699741414,12.88,233.38,232.99,2.02]
[1732699743317,12.88,233.39,232.99,2.02]
[1732699753231,12.88,233.56,232.99,2.02]
[1732699753429,12.88,233.54,232.99,2.02]
[1732699754532,12.88,233.56,232.99,2.02]
[1732699754730,12.88,233.54,232.99,2.02]
[1732699761537,12.88,233.54,232.98,12.89]
[1732699761735,12.88,233.54,232.99,2.0]
[1732699762237,25.77,233.54,232.99,2.0]
[1732699762437,25.77,233.54,233.0,2.0]
[1732699762635,25.77,233.54,233.01,12.89]
[1732699765436,12.88,233.54,233.01,12.89]
[1732699766744,25.77,233.54,233.01,12.89]
[1732699766943,63.37809789,233.54,233.01,12.89]
[1732699767543,63.37809789,233.54,233.02,2.0]
[1732699768638,63.37809789,233.54,233.01,12.89]
[1732699768845,63.37809789,233.54,233.02,2.0]
[1732699773645,12.88,233.52,233.02,2.0]
[1732699775147,12.88,233.53,233.02,2.0]
[1732699775348,12.88,233.51,233.02,2.0]
[1732699776249,12.88,233.49,233.02,2.0]
[1732699785454,12.88,233.47,233.02,2.0]
[1732699785655,12.88,233.45,233.02,2.0]
[1732699790458,12.88,233.53,233.02,2.0]
[1732699790653,12.88,233.51,233.02,2.0]
[1732699790858,12.88,233.49,233.02,2.0]
[1732699791256,14.88,233.49,233.02,2.0]
[1732699796061,14.88,233.49,233.04,12.89]
[1732699800967,14.88,233.49,233.05,2.0]
[1732699801667,12.88,233.53,233.05,2.0]
[1732699801863,12.88,233.51,233.05,2.0]
[1732699802063,12.88,233.49,233.05,2.0]
[1732699804273,12.88,233.49,233.04,12.89]
[1732699804568,12.88,233.49,233.06,2.0]
[1732699806574,12.88,233.49,233.04,12.89]
[1732699806769,12.88,233.49,233.05,2.0]
[1732699806973,12.88,233.49,233.04,12.89]
[1732699807172,12.88,233.49,233.05,2.0]
[1732699808973,12.88,233.48,233.05,2.0]
[1732699809272,12.88,233.46,233.05,2.0]
[1732699811773,12.88,233.58,233.05,2.0]
[1732699811975,12.88,233.44,233.05,2.0]
[1732699813777,12.88,233.59,233.05,2.0]
[1732699814077,12.88,233.5,233.05,2.0]
[1732699815581,12.88,233.51,233.05,2.0]
[1732699818987,12.88,233.59,233.05,2.0]
[1732699819185,12.88,233.53,233.05,2.0]
[1732699820280,12.88,233.52,233.05,2.0]
[1732699823289,12.88,233.52,233.04,12.89]
[1732699823488,12.88,233.52,233.05,2.0]
[1732699823688,12.88,233.52,233.06,12.89]
[1732699826187,12.88,233.52,233.08,12.89]
[1732699833594,12.88,233.52,233.09,2.0]
[1732699833792,12.88,233.52,233.1,12.89]
[1732699836693,12.88,233.52,233.09,2.0]
[1732699837894,12.88,233.5,233.09,2.0]
[1732699839297,12.88,233.59,233.09,2.0]
[1732699839495,12.88,233.57,233.09,2.0]
[1732699842496,12.88,233.57,233.08,12.89]
[1732699842897,12.88,233.57,233.09,2.0]
[1732699843096,25.77,233.57,233.09,27.38966266]
[1732699843296,25.77,233.57,233.1,2.0]
[1732699844797,2.0,233.58,233.1,2.0]
[1732699844798,12.88,233.59,233.1,14.89]
[1732699844997,12.88,233.57,233.1,14.89]
[1732699845197,25.77,233.57,233.09,27.38966266]
[1732699845492,25.77,233.57,233.1,2.0]
[1732699850799,25.77,233.57,233.11,2.0]
[1732699853496,25.77,233.47,233.11,2.0]
[1732699853692,12.88,233.45,233.11,2.0]
[1732699855193,12.88,233.43,233.11,2.0]
[1732699856403,25.77,233.43,233.11,2.0]
[1732699857502,25.77,233.43,233.09,27.38966266]
[1732699857703,25.77,233.43,233.1,2.0]
[1732699862006,25.77,233.43,233.09,27.38966266]
[1732699862206,25.77,233.43,233.09,29.38966266]
[1732699864007,25.77,233.41,233.09,29.38966266]
[1732699864208,12.88,233.39,233.09,29.38966266]
[1732699867009,25.77,233.39,232.96,33.48]
[1732699867204,25.77,233.39,232.95,261.75603381]
[1732699867508,25.77,233.39,232.96,2.0]
[1732699867811,25.77,233.39,232.95,261.75603381]
[1732699871809,12.88,233.33,232.95,261.75603381]
[1732699872011,25.77,233.25,232.95,261.75603381]
[1732699872314,12.88,233.23,232.95,261.75603381]
[1732699872512,12.88,233.21,232.95,261.75603381]
[1732699872713,12.88,233.19,232.95,261.75603381]
[1732699872913,12.88,233.17,232.95,261.75603381]
[1732699875006,12.88,233.15,232.95,261.75603381]
[1732699876014,12.88,233.13,232.95,261.75603381]
[1732699876914,12.88,233.11,232.95,261.75603381]
[1732699877414,12.88,233.09,232.95,261.75603381]
[1732699877614,12.88,233.07,232.95,261.75603381]
[1732699877816,12.88,233.05,232.95,261.75603381]
[1732699880817,12.88,233.05,232.95,237.11603381]
[1732699881619,12.88,233.05,232.95,224.79603381]
[1732699883018,12.88,233.17,232.95,224.79603381]
[1732699883218,12.88,233.15,232.95,224.79603381]
[1732699883419,12.88,233.13,232.95,224.79603381]
[1732699883619,12.88,233.11,232.95,224.79603381]
[1732699883921,33.54,233.19,232.95,224.79603381]
[1732699883922,12.88,233.09,232.95,224.79603381]
[1732699887421,12.88,233.09,232.95,212.47603381]
[1732699887812,12.88,233.09,232.95,200.15603381]
[1732699888014,12.88,233.09,232.95,187.83603381]
[1732699888218,12.88,233.09,232.95,175.51603381]
[1732699889021,12.89,233.08,232.95,163.19603381]
[1732699889423,12.89,233.08,232.95,150.87603381]
[1732699889724,12.89,233.06,232.95,138.55603381]
[1732699890923,12.89,233.06,232.95,126.23603381]
[1732699891626,12.89,233.06,232.95,113.91603381]
[1732699891825,12.89,233.06,232.95,101.59603381]
[1732699892029,12.88,233.04,232.95,101.59603381]
[1732699892228,12.88,233.02,232.95,101.59603381]
[1732699892826,12.88,233.0,232.95,101.59603381]
[1732699895230,12.88,233.06,232.95,101.59603381]
[1732699895431,12.88,232.98,232.95,101.59603381]
[1732699895631,12.88,232.96,232.95,101.59603381]
[1732699902637,12.88,232.96,232.95,89.27603381]
[1732699903835,12.88,232.96,232.95,76.95603381]
[1732699904435,12.88,233.06,232.95,76.95603381]
[1732699904636,12.88,233.04,232.95,76.95603381]
[1732699908240,12.88,233.04,232.95,64.63603381]
[1732699908541,25.77,233.04,232.95,52.31603381]
[1732699908740,25.77,233.04,232.95,39.99603381]
[1732699908942,2.04,233.03,232.95,27.67603381]
[1732699909139,12.88,233.02,232.95,27.67603381]
[1732699910341,12.88,233.0,232.95,27.67603381]
[1732699910740,12.88,232.98,232.95,27.67603381]
[1732699915443,12.88,233.06,232.95,27.67603381]
[1732699915645,12.88,233.04,232.95,27.67603381]
[1732699916247,12.88,233.02,232.95,27.67603381]
[1732699922551,12.88,233.02,232.95,15.35603381]
[1732699922753,25.77,233.02,232.95,3.03603381]
[1732699923450,25.77,233.02,232.92,71.21579735]
[1732699923651,2.04,233.01,232.92,71.21579735]
[1732699925152,2.04,233.0,232.92,71.21579735]
[1732699925853,12.88,233.02,232.92,71.21579735]
[1732699926152,2.04,233.01,232.92,71.21579735]
[1732699926351,12.88,233.0,232.92,71.21579735]
[1732699929654,25.77,233.0,232.92,71.21579735]
[1732699930355,25.77,232.98,232.92,71.21579735]
[1732699932858,25.77,232.98,232.92,58.89579735]
[1732699937161,25.77,232.98,232.92,46.57579735]
[1732699937461,25.77,232.98,232.92,34.25579735]
[1732699937961,25.77,232.98,232.92,21.93579735]
[1732699938262,25.77,232.98,232.92,12.93579735]
[1732699941262,25.77,232.98,232.92,3.93579735]
[1732699942665,25.77,232.94,232.92,3.93579735]
[1732699944167,25.77,232.94,232.83,91.56316802]
[1732699946362,25.77,232.94,232.86,285.53846282]
[1732699949969,12.88,232.92,232.86,285.53846282]
[1732699950864,12.88,232.9,232.86,285.53846282]
[1732699951069,12.88,232.88,232.86,285.53846282]
[1732699953065,12.89,232.94,232.86,285.53846282]
[1732699953270,25.77,232.91,232.86,285.53846282]
[1732699963281,12.88,232.98,232.86,285.53846282]
[1732699963481,25.77,232.94,232.86,285.53846282]
[1732699963779,12.88,232.94,232.86,285.53846282]
[1732699964079,12.88,232.92,232.86,285.53846282]
[1732699964479,12.88,232.9,232.86,285.53846282]
[1732699964679,12.88,232.88,232.86,285.53846282]
[1732699966079,12.88,232.87,232.86,285.53846282]
[1732699966282,14.92,232.87,232.86,285.53846282]
[1732699967782,12.88,232.87,232.86,285.53846282]
[1732699967983,14.88,232.87,232.86,285.53846282]
[1732699970786,12.88,232.98,232.86,285.53846282]
[1732699970988,12.88,232.96,232.86,285.53846282]
[1732699974292,12.88,232.98,232.86,285.53846282]
[1732699974589,12.88,232.96,232.86,285.53846282]
[1732699976892,25.77,232.96,232.86,285.53846282]
[1732699977092,12.88,232.96,232.86,285.53846282]
[1732699978896,12.88,232.95,232.86,285.53846282]
[1732699979091,12.88,232.93,232.86,285.53846282]
[1732699982196,12.88,232.98,232.86,285.53846282]
[1732699982396,12.88,232.96,232.86,285.53846282]
[1732699982598,12.88,232.94,232.86,285.53846282]
[1732699983697,12.88,232.93,232.86,285.53846282]
[1732699984197,2.0,232.92,232.86,285.53846282]
[1732699984398,12.88,232.93,232.86,285.53846282]
[1732699985099,12.88,232.94,232.86,285.53846282]
[1732699992913,12.88,232.98,232.86,285.53846282]
[1732699993211,12.88,232.96,232.86,285.53846282]
[1732699995714,25.77,232.96,232.86,285.53846282]
[1732699996515,12.88,232.94,232.86,285.53846282]
[1732699996919,12.88,232.92,232.86,285.53846282]
[1732700003715,12.88,232.96,232.86,285.53846282]
[1732700003921,12.88,232.9,232.86,285.53846282]
[1732700004121,12.88,232.88,232.86,285.53846282]
[1732700008625,12.88,232.95,232.86,285.53846282]
[1732700008825,12.88,232.93,232.86,285.53846282]
[1732700009026,12.88,232.91,232.86,285.53846282]
[1732700014629,25.77,232.91,232.86,285.53846282]
[1732700015729,25.77,232.91,232.86,280.53846282]
[1732700016630,25.77,232.91,232.86,271.53846282]
[1732700018733,25.77,232.91,232.86,259.17846282]
[1732700019735,25.77,232.87,232.86,259.17846282]
[1732700021234,14.92,232.87,232.86,259.17846282]
[1732700022336,27.81,232.87,232.86,259.17846282]
[1732700031537,12.89,232.91,232.86,259.17846282]
[1732700031743,12.88,232.87,232.86,259.17846282]
[1732700033443,12.88,232.89,232.86,259.17846282]
[1732700037046,12.88,232.95,232.86,259.17846282]
[1732700037346,25.77,232.91,232.86,259.17846282]
[1732700040048,25.77,232.91,232.78,356.39581142]
[1732700051758,12.88,232.81,232.78,356.39581142]
[1732700052058,12.88,232.79,232.78,356.39581142]
[1732700057769,12.88,232.95,232.78,356.39581142]
[1732700057969,25.77,232.83,232.78,356.39581142]
[1732700058267,12.88,232.81,232.78,356.39581142]
[1732700065270,12.89,232.87,232.78,356.39581142]
[1732700065470,27.83,232.86,232.78,356.39581142]
[1732700065671,14.94,232.86,232.78,356.39581142]
[1732700065870,12.88,232.84,232.78,356.39581142]
[1732700070977,12.88,232.88,232.78,356.39581142]
[1732700071277,12.88,232.86,232.78,356.39581142]
[1732700074482,12.88,232.88,232.78,356.39581142]
[1732700074681,12.88,232.86,232.78,356.39581142]
[1732700076781,25.81,232.86,232.78,356.39581142]
[1732700079084,12.88,232.84,232.78,356.39581142]
[1732700079285,12.88,232.82,232.78,356.39581142]
[1732700080886,25.81,232.96,232.78,356.39581142]
[1732700081085,12.88,232.94,232.78,356.39581142]
[1732700081887,25.81,232.94,232.78,356.39581142]
[1732700082891,12.88,232.94,232.78,356.39581142]
[1732700083188,12.88,232.92,232.78,356.39581142]
[1732700083389,12.88,232.9,232.79,2.06]
[1732700088290,12.88,233.07,232.79,2.06]
[1732700088592,12.88,232.97,232.79,2.06]
[1732700088793,12.88,232.95,232.79,2.06]
[1732700088993,12.88,232.93,232.79,2.06]
[1732700089194,12.88,232.93,232.78,356.39581142]
[1732700091192,12.93,233.02,232.78,356.39581142]
[1732700091495,12.88,232.91,232.78,356.39581142]
[1732700094199,25.81,232.91,232.78,356.39581142]
[1732700098500,12.88,232.91,232.78,356.39581142]
[1732700100703,12.88,233.05,232.78,356.39581142]
[1732700101001,25.81,233.01,232.78,356.39581142]
[1732700103302,12.88,232.99,232.78,356.39581142]
[1732700103499,12.88,232.97,232.78,356.39581142]
[1732700106105,25.81,233.05,232.78,356.39581142]
[1732700106306,12.88,232.97,232.78,356.39581142]
[1732700108107,12.93,233.06,232.78,356.39581142]
[1732700108311,12.88,233.03,232.78,356.39581142]
[1732700109411,12.88,233.04,232.78,356.39581142]
[1732700109610,33.6,233.09,232.78,356.39581142]
[1732700109611,12.88,233.02,232.78,356.39581142]
[1732700110613,12.88,233.04,232.78,356.39581142]
[1732700112206,25.81,233.04,232.78,356.39581142]
[1732700112411,25.81,233.04,232.79,2.04]
[1732700112612,25.81,233.04,232.78,356.39581142]
[1732700112912,25.81,233.04,232.78,358.43581142]
[1732700113411,25.81,233.04,232.78,356.39581142]
[1732700134629,12.93,232.95,232.78,356.39581142]
[1732700134932,27.91,232.94,232.78,356.39581142]
[1732700138635,25.81,232.94,232.78,356.39581142]
[1732700138837,12.88,232.92,232.78,356.39581142]
[1732700142741,12.88,232.91,232.78,356.39581142]
[1732700143841,2.1,232.95,232.78,356.39581142]
[1732700144042,12.88,232.9,232.78,356.39581142]
[1732700145144,12.88,232.96,232.78,356.39581142]
[1732700149250,12.88,233.02,232.78,356.39581142]
[1732700149949,12.88,233.0,232.78,356.39581142]
[1732700150945,12.88,233.17,232.78,356.39581142]
[1732700151250,12.88,233.13,232.78,389.97581142]
[1732700151550,12.88,233.11,232.78,389.97581142]
[1732700156348,12.88,233.09,232.78,389.97581142]
[1732700157759,12.88,233.1,232.78,389.97581142]
[1732700159959,12.88,233.09,232.78,389.97581142]
[1732700161059,33.58,233.23,232.78,389.97581142]
[1732700161060,12.88,233.17,232.78,389.97581142]
[1732700161259,12.88,233.17,232.78,402.90581142]
[1732700163363,12.88,233.22,232.78,402.90581142]
[1732700163559,12.88,233.22,232.79,2.06]
[1732700165164,12.88,233.22,232.78,402.90581142]
[1732700165356,12.88,233.22,232.79,2.06]
[1732700165557,25.81,233.22,232.78,389.97581142]
[1732700165856,25.81,233.22,232.79,2.06]
[1732700166354,25.81,233.22,232.8,2.06]
[1732700166554,25.81,233.22,232.8,29.50661562]
[1732700168061,12.88,233.18,232.8,29.50661562]
[1732700168261,25.81,233.16,232.8,29.50661562]
[1732700168457,12.88,233.14,232.8,29.50661562]
[1732700169564,25.81,233.14,232.8,27.44661562]
[1732700169765,25.81,233.14,232.81,2.06]
[1732700169966,14.94,233.13,232.81,2.06]
[1732700170264,12.88,233.11,232.81,2.06]
[1732700170464,2.06,233.12,232.81,2.06]
[1732700171165,12.92,233.15,232.81,2.06]
[1732700171463,2.06,233.14,232.81,2.06]
[1732700172066,14.98,233.14,232.81,2.06]
[1732700172266,14.98,233.14,232.82,2.06]
[1732700173668,12.92,233.24,232.82,2.06]
[1732700173867,12.92,233.22,232.82,2.06]
[1732700183170,12.92,233.22,232.8,27.44661562]
[1732700183369,12.92,233.22,232.81,2.08]
[1732700190874,12.92,233.22,232.8,27.44661562]
[1732700191171,12.92,233.22,232.82,2.08]
[1732700192471,12.92,233.22,232.83,2.08]
[1732700193973,12.92,233.2,232.83,2.08]
[1732700198780,12.92,233.24,232.83,2.08]
[1732700199081,12.92,233.22,232.83,2.08]
[1732700199381,12.92,233.2,232.83,2.08]
[1732700204581,12.92,233.24,232.83,2.08]
[1732700204782,12.92,233.22,232.83,2.08]
[1732700205278,2.08,233.21,232.83,2.08]
[1732700205480,15.0,233.21,232.83,2.08]
[1732700206781,12.92,233.24,232.83,2.08]
[1732700206981,12.92,233.22,232.83,2.08]
[1732700209381,12.92,233.22,232.8,40.37661562]
[1732700209683,12.92,233.22,232.84,2.08]
[1732700212284,12.92,233.22,232.8,40.37661562]
[1732700212478,12.92,233.22,232.81,2.04]
[1732700212683,12.92,233.22,232.8,27.44661562]
[1732700212982,12.92,233.22,232.82,2.04]
[1732700213385,12.92,233.22,232.8,27.44661562]
[1732700213685,12.92,233.22,232.81,2.04]
[1732700217887,12.92,233.22,232.8,27.44661562]
[1732700218185,12.92,233.22,232.81,2.04]
[1732700220288,12.92,233.22,232.82,2.04]
[1732700224295,25.85,233.2,232.8,27.44661562]
[1732700224486,25.85,233.2,232.81,2.04]
[1732700226196,25.85,233.2,232.8,27.44661562]
[1732700226395,25.85,233.2,232.81,2.04]
[1732700226690,25.85,233.2,232.8,27.44661562]
[1732700226895,25.85,233.2,232.82,2.04]
[1732700227095,25.85,233.2,232.8,27.44661562]
[1732700227294,25.85,233.2,232.81,2.04]
[1732700229496,25.85,233.2,232.81,2.04]
[1732700229793,25.85,233.1,232.81,2.04]
[1732700229993,12.92,233.08,232.81,2.04]
[1732700234798,12.93,233.21,232.81,2.04]
[1732700235103,25.85,233.12,232.81,2.04]
[1732700235304,33.54,233.24,232.81,2.04]
[1732700235305,25.85,233.1,232.81,2.04]
[1732700237201,25.85,233.1,232.8,27.44661562]
[1732700237504,25.85,233.1,232.82,2.04]
[1732700240005,12.92,233.08,232.82,2.04]
[1732700240205,12.92,233.06,232.82,2.04]